Cogmind - Beta 12 X1 @@@ ROGUE MODE // 2022.06.30 @ 11:02:14 Player: btmk16 Result: Destroyed by H-55 Commando with Assault Rifle Performance ------------- Evolutions (0) 0 Regions Visited (3) 600 Robots Destroyed (21) 105 Value Destroyed (592) 592 Prototype IDs (25) 500 Alien Tech Used (0) 0 Bonus (318) 318 TOTAL SCORE: 2115 Bonus ------- Follower Combat Kills 32 Aligned with FarCom 300 Friendly Fire -14 Cogmind --------- Core Integrity 0/250 Matter 292/300 Energy 95/100 System Corruption 7% Temperature Cool (0) Movement Core (50) Location -10/Exiles Parts ------- > --- POWER (1) -------- (None) > --- PROPULSION (2) --- (None) > --- UTILITY (2) ------ (None) > --- WEAPON (2) ------- (None) > --- INVENTORY (5) ---- Light Armor Plating Thief Drone Bay (3/3) EMP Blaster Rocket Launcher Peak State ------------ > --- POWER ------------ Heavy Ion Engine > --- PROPULSION ------- Light Treads Light Treads > --- UTILITY ---------- Medium Storage Unit Thief Drone Bay > --- WEAPON ----------- Particle Gun Assault Rifle > --- INVENTORY -------- Large Matter Pod Light Armor Plating Light Armor Plating Light Armor Plating Small Laser EMP Blaster EMP Blaster EMP Blaster EMP Blaster Rocket Launcher [Rating: 17] Favorites ----------- Power Heavy Ion Engine Engine Heavy Ion Engine Propulsion Light Treads Treads Light Treads Leg Aluminum Leg Utility Medium Storage Unit Device Improved Heat Sink Storage Medium Storage Unit Protection Light Armor Plating Weapon Assault Rifle Energy Gun Small Laser Ballistic Gun Assault Rifle Launcher EMP Blaster Build | -11 -10 -10 -10 ------- Run | Scr Mat Min Exi Slots Evolved . | . . . . Power . | . . . . Propulsion . | . . . . Utility . | . . . . Weapon . | . . . . Parts Attached 19 | . 16 3 . Power 3 | . 3 . . Engine 3 | . 3 . . Core . | . . . . Reactor . | . . . . Propulsion 6 | . 6 . . Treads 5 | . 5 . . Leg 1 | . 1 . . Wheel . | . . . . Hover . | . . . . Flight . | . . . . Utility 4 | . 2 2 . Device 2 | . 1 1 . Storage 1 | . 1 . . Processor . | . . . . Hackware . | . . . . Protection 1 | . . 1 . Artifact . | . . . . Weapon 6 | . 5 1 . Energy Gun 4 | . 3 1 . Energy Cannon . | . . . . Ballistic Gun 1 | . 1 . . Ballistic Cannon . | . . . . Launcher 1 | . 1 . . Special Weapon . | . . . . Impact Weapon . | . . . . Slashing Weapon . | . . . . Piercing Weapon . | . . . . Special Melee Weapon . | . . . . Unidentified Prototypes 2 | . 1 1 . Parts Lost 9 | . 2 1 6 Power 2 | . 1 . 1 Propulsion 2 | . . . 2 Utility 1 | . . . 1 Weapon 4 | . 1 1 2 Highest Loss Streak 6 | . 1 1 6 To Critical Strikes . | . . . . Average Slot Usage (%) 99 | . 98 99 98 Engine 13 | . 13 14 14 Treads 26 | . 25 28 28 Leg 1 | . 2 . . Device 11 | . 13 13 . Storage 14 | . 14 14 14 Protection 2 | . . . 13 Energy Gun 13 | . 13 13 14 Ballistic Gun 13 | . 13 14 13 Naked Turns 1 | . . . 1 Heaviest Build 27 | 11 25 27 26 Greatest Support 40 | 20 40 40 40 Greatest Overweight (x) 1 | . . . 1 Average Overweight (x) . | . . . . Largest Inventory Capacity 10 | . 10 10 10 Average Capacity 9 | . 9 10 9 Most Carried 10 | . 10 10 10 Average Carried 9 | . 9 10 9 Final Capacity 10 | 8 10 10 5 Final Carried 10 | 6 10 10 4 Class Distribution -------------------- 98% | Mutant Dominant Class ---------------- Mutant | -10/Materials Mutant | -10/Mines Mutant | -10/Exiles Resources | -11 -10 -10 -10 ----------- Run | Scr Mat Min Exi Matter Collected 785 | 200 512 73 . Remotely . | . . . . Salvage Created 763 | . 594 169 . Parts 39 | . 31 8 . Haulers Intercepted 2 | . 2 . . Recyclers Shooed 2 | . 2 . . Parts Field Recycled . | . . . . Retrieved Matter . | . . . . Parts Self-Destructed . | . . . . Prevented . | . . . . Kills | -11 -10 -10 -10 ------- Run | Scr Mat Min Exi Combat Hostiles Destroyed 17 | . 11 6 . Guns 16 | . 10 6 . AOE 1 | . 1 . . Classes Destroyed 5 | . 4 1 . Worker 1 | . 1 . . Hauler 2 | . 2 . . Watcher 1 | . 1 . . Swarmer 3 | . . 3 . Grunt 14 | . 11 3 . Best Kill Streak 5 | . 5 2 . Combat Bots Only 3 | . 3 2 . Max Kills in Single Turn 1 | . 1 1 . Gunslinging . | . . . . Exploded 1 | . 1 . . Melee . | . . . . Uniques/NPCs Destroyed . | . . . . Combat | -11 -10 -10 -10 -------- Run | Scr Mat Min Exi Damage Taken 1531 | . 736 127 668 Core 258 | . 82 18 158 Absorbed by Shields . | . . . . Core Remaining (%) 100 | 100 . . . Volleys Fired 75 | . 64 11 . Largest 2 | . 2 2 . Hottest 85 | . 60 85 . Shots Fired 141 | . 120 21 . Gun 136 | . 115 21 . Cannon . | . . . . Launcher 5 | . 5 . . Special . | . . . . Kinetic 67 | . 56 11 . Thermal 69 | . 59 10 . Explosive . | . . . . Electromagnetic 5 | . 5 . . Robot Hit Streak 13 | . 13 5 . Robot Miss Streak 3 | . 3 1 . Penetration Max . | . . . . Secondary Targets 2 | . 2 . . Max Gunslinging Chain 1 | . 1 . . Shots Hit Robots 104 | . 89 15 . Core Hits 41 | . 31 10 . Critical Kills . | . . . . Critical Parts Destroyed . | . . . . Critical Strikes . | . . . . Melee Attacks . | . . . . Impact . | . . . . Slashing . | . . . . Piercing . | . . . . Sneak Attacks . | . . . . Combat Hostiles . | . . . . Follow-up Attacks . | . . . . Damage Inflicted 1443 | . 1237 206 . Guns 1286 | . 1080 206 . Cannons . | . . . . Explosions 157 | . 157 . . Melee . | . . . . Ramming . | . . . . Kinetic 688 | . 561 127 . Thermal 598 | . 519 79 . Explosive . | . . . . Electromagnetic 157 | . 157 . . Impact . | . . . . Slashing . | . . . . Piercing . | . . . . Highest Corruption 7 | . 1 1 7 Average Corruption 1 | . 1 1 1 Corruption Purged . | . . . . Corruption Blocked . | . . . . Effects 26 | . 9 14 3 Message Errors 8 | . 3 4 1 Matter Fused 5 | . 3 1 1 Heat Flow Errors 2 | . 1 1 . Energy Discharges 3 | . 1 1 1 Data Loss (minor) 6 | . 1 5 . Data Loss (major) 1 | . . 1 . Misfires 1 | . . 1 . Overload Shots . | . . . . Overflow Damage . | . . . . Projectiles . | . . . . Explosions . | . . . . Melee . | . . . . Knockbacks . | . . . . Impact . | . . . . Kinetic . | . . . . Secondary . | . . . . Self-Inflicted Damage . | . . . . Shots . | . . . . Rammed . | . . . . Targets Rammed . | . . . . Kicked . | . . . . Crushed . | . . . . Highest Temperature 224 | . 157 224 . Average Temperature 41 | . 40 42 . Received Heat Transfer 549 | . 435 36 78 Siege Activations . | . . . . Robots Corrupted . | . . . . Combat Hostiles . | . . . . Parts Fried . | . . . . Impact Corruptions . | . . . . Robots Melted . | . . . . Combat Hostiles . | . . . . Parts Melted 1 | . 1 . . Heat Transferred 1311 | . 1125 186 . Parts Sabotaged . | . . . . Parts Stolen . | . . . . Parts Stripped . | . . . . Power Chain Reactions . | . . . . Missiles Intercepted . | . . . . Alert | -11 -10 -10 -10 ------- Run | Scr Mat Min Exi Peak Influence 192 | . 192 97 . Initial 42 | . . 42 . Average 51 | . 69 28 . Maximum Alert Level . | . . . . Low Security (%) 100 | . 100 100 . Level 1 . | . . . . Level 2 . | . . . . Level 3 . | . . . . Level 4 . | . . . . Level 5 . | . . . . High Security . | . . . . Max Security . | . . . . Squads Dispatched 3 | . 3 . . Investigation 1 | . 1 . . Extermination . | . . . . Reinforcement 2 | . 2 . . Assault . | . . . . Garrison . | . . . . Intercept . | . . . . Searches Triggered . | . . . . Construction Impeded . | . . . . Haulers Reinforced . | . . . . Active Scanning Responses . | . . . . Cargo Convoy Interrupts . | . . . . Stealth | -11 -10 -10 -10 --------- Run | Scr Mat Min Exi Distress Signals 5 | . 5 . . Communications Jammed . | . . . . Distress Signals . | . . . . Times Spotted 51 | . 31 10 10 Peak Tracking Total 12 | . 3 3 12 Tactical Retreats 4 | . 4 . . Traps | -11 -10 -10 -10 ------- Run | Scr Mat Min Exi Traps Triggered 4 | . 4 . . Indirectly . | . . . . Trap Hack Attempts . | . . . . Triggered . | . . . . Disarmed . | . . . . Reprogrammed . | . . . . Reused . | . . . . Traps Extracted . | . . . . Installed . | . . . . Triggered . | . . . . Machines | -11 -10 -10 -10 ---------- Run | Scr Mat Min Exi Machines Disabled . | . . . . Max in Single Turn . | . . . . Machines Sabotaged . | . . . . Garrisons Compromised . | . . . . Overloaded Fab Kills . | . . . . Hacking | -11 -10 -10 -10 --------- Run | Scr Mat Min Exi Machines Accessed 9 | . 6 2 1 Terminals 7 | . 6 1 . Fabricators . | . . . . Repair Stations . | . . . . Recycling Units . | . . . . Scanalyzers . | . . . . Garrison Access . | . . . . Total Hacks 19 | . 15 3 1 Successful 10 | . 8 1 1 Failed 8 | . 6 2 . Catastrophic . | . . . . Database Lockouts 1 | . 1 . . Manual 7 | . 6 . 1 Terminals 17 | . 15 2 . Fabricators . | . . . . Repair Stations . | . . . . Recycling Units . | . . . . Scanalyzers . | . . . . Garrison Access . | . . . . Terminal Hacks 7 | . 5 1 1 Robot Analysis 1 | . 1 . . Open Door 1 | . . 1 . Hauler Manifests 1 | . 1 . . Registered Components 1 | . 1 . . Zone Layout 2 | . 2 . . EX-Prototype ID Bank 1 | . . . 1 Fabricator Hacks . | . . . . Repair Station Hacks . | . . . . Recycling Unit Hacks . | . . . . Scanalyzer . | . . . . Garrison Access Hacks . | . . . . Unauthorized Hacks 3 | . 3 . . Terminals 3 | . 3 . . Track 2 | . 2 . . Botnet 1 | . 1 . . Fabricators . | . . . . Repair Stations . | . . . . Recycling Units . | . . . . Scanalyzers . | . . . . Garrison Access . | . . . . Data Cores Recovered . | . . . . Used . | . . . . Hacking Detections 5 | . 4 1 . Full Trace Events 1 | . . 1 . Feedback Events . | . . . . Feedback Blocked . | . . . . Robot Schematics Acquired . | . . . . Robots Built . | . . . . Authchips . | . . . . Time . | . . . . Total Robot Build Rating . | . . . . Part Schematics Acquired . | . . . . Parts Built . | . . . . Authchips . | . . . . Time . | . . . . Total Part Build Rating . | . . . . Parts Repaired . | . . . . Time . | . . . . Parts Recycled . | . . . . Recycled Matter . | . . . . Retrieved Matter . | . . . . Retrieved Components . | . . . . Parts Scanalyzed . | . . . . Part Schematics Acquired . | . . . . Parts Damaged . | . . . . Bothacking | -11 -10 -10 -10 ------------ Run | Scr Mat Min Exi Used RIF Installer . | . . . . Robots Hacked . | . . . . Non-combat . | . . . . Combat . | . . . . Robot Hacks Applied . | . . . . Relay Couplers Released . | . . . . Fabnet Peak Effective % . | . . . . Robots Rewired . | . . . . Allies Hacked . | . . . . Hacks Repelled . | . . . . Allies | -11 -10 -10 -10 -------- Run | Scr Mat Min Exi Total Allies . | . . . . Largest Group . | . . . . Highest-Rated Group . | . . . . Highest-Rated Ally . | . . . . Total Orders 1 | . . 1 . RETURN 1 | . . 1 . Ally Attacks 24 | . . 24 . Total Damage 71 | . . 71 . Kills 2 | . . 2 . Allies Corrupted . | . . . . Allies Melted . | . . . . Intel | -11 -10 -10 -10 ------- Run | Scr Mat Min Exi Robot Analysis Total 1 | . 1 . . Derelict Logs Recovered 1 | . . 1 . Drone Launches 10 | . . 10 . Drone Recoveries 10 | . . 10 . Exploration | -11 -10 -10 -10 ------------- Run | Scr Mat Min Exi Turns Passed 3325 | . 1612 1282 431 Spaces Moved 1871 | 1 841 763 266 Core . | . . . . Treads 1782 | . 753 763 266 Legs 89 | 1 88 . . Wheels . | . . . . Hover . | . . . . Flight . | . . . . Fastest Speed 120 | 120 120 160 160 Average Speed 158 | 120 155 160 160 Slowest Speed 240 | 120 160 160 240 Overloaded Moves . | . . . . Propulsion Burnouts . | . . . . Robots Hopped . | . . . . Cave-ins Triggered . | . . . . Exploration Rate (%) 59 | 1 93 99 43 Regions Visited 3 Branch Regions 2 Pre-discovered Areas 1 | . . 1 . Known Exits Taken . | . . . . Unknown Exits Taken 3 | 1 1 1 . Scrap Searched 1 | . . 1 . Spaces Dug . | . . . . Terrain Destroyed . | . . . . Melee . | . . . . Projectile . | . . . . AOE . | . . . . Terrain Rammed . | . . . . Walls Destroyed . | . . . . Machines Disabled . | . . . . Actions | -11 -10 -10 -10 --------- Run | Scr Mat Min Exi Total 2103 | . 1025 805 273 Wait 105 | . 79 26 . Move 1868 | . 840 762 266 Hop . | . . . . Pick Up 13 | . 11 1 1 Fast Attach 5 | . 3 2 . Attach 2 | . 2 . . Detach 1 | . 1 . . Swap 12 | . 11 1 . Drop 22 | . 14 2 6 Fire 75 | . 64 11 . Melee . | . . . . Ram . | . . . . Kick . | . . . . Crush . | . . . . Escape Stasis . | . . . . Rewire . | . . . . Trap . | . . . . Miscellaneous . | . . . . Route ------- -11/Scrapyard -10/Materials (discovered 4 exits: [*Mat x3] / *Min) -10/Mines (discovered 3 exits: [*Mat x2] / *Exi) -10/Exiles History --------- Turn | Location | Event 1 | -11/Scrapyard | Discovered new exit (range 0) 1 | -11/Scrapyard | Entered Materials 6 | -10/Materials | Central database locked down 319 | -10/Materials | Build established: Mutant 343 | -10/Materials | Discovered new exit (range 13) 587 | -10/Materials | Discovered new exit (range 8) 895 | -10/Materials | Discovered new exit (range 7) 1353 | -10/Materials | Discovered new exit (range 11) 1613 | -10/Materials | Entered Mines 1625 | -10/Mines | Met a Derelict bent on vengeance 1713 | -10/Mines | Discovered new exit (range 5) 1805 | -10/Mines | Found the Drone Emporium 1812 | -10/Mines | Found Prototype Device 1812 | -10/Mines | Identified Thief Drone Bay 1901 | -10/Mines | Learned location of Recycling (-7) 1906 | -10/Mines | Received a Rocket Launcher from a helpful Derelict 2756 | -10/Mines | Discovered new exit (range 11) 2889 | -10/Mines | Deemed a non-threat by the Exiles lab entrance 2889 | -10/Mines | Discovered new exit (range 5) 2895 | -10/Mines | Entered Exiles 2939 | -10/Exiles | Met 8R-AWN 2961 | -10/Exiles | Met EX-HEX 3009 | -10/Exiles | Met EX-BIN 3044 | -10/Exiles | Aligned with FarCom system 3046 | -10/Exiles | Given EX-Vault access code 3086 | -10/Exiles | Opened EX-Vault 3127 | -10/Exiles | Warned to stay clear of 0b10 Research branches 3151 | -10/Exiles | Exiles lab attacked by MAIN.C 3257 | -10/Exiles | Found Lightpack 2.0 3312 | -10/Exiles | Core integrity fell below 50% 3324 | -10/Exiles | Core integrity fell below 20% 3326 | -10/Exiles | Destroyed by H-55 Commando with Assault Rifle Last Messages --------------- ready..." 03255_ Dropped EMP Blaster. 03257_ Acquired Lightpack 2.0. 03301_ Machine disabled. 03306_ Penetrated by Slug. 03308_ System corrupted: Energy discharge (-98). 03308_ Assault Rifle destroyed. 03313_ Penetrated by Slug. 03313_ Lgt. Armor Plating destroyed. 03316_ Slug penetrates Machine. 03321_ Lgt. Treads destroyed. 03324_ Slug penetrates Machine. 03324_ Lgt. Treads destroyed. 03324_ Dropped Lightpack 2.0. 03325_ Hvy. Ion Engine destroyed. 03325_ Particle Gun destroyed. 03325_ Dropped Med. Storage Unit. 03325_ Dropped Lrg. Matter Pod. 03326_ System corrupted: Matter fused (-8). 03326_ Penetrated by Slug. Map ----- +----------------------------------------------------+ | ????????????????????#""X" #??????????????? | | ????????????????????#" #??????????????? | | ????????????????????#" ## #??????????????? | | ????????????????????#""""""?# #?#########????? | | ????????????????????##"###??# #?#"""""""#????? | | ????????????????????????????# #?#"""""""#????? | | ????????????????????????????# #?#"""""""#????? | | ???????????????????????????## ###"" """"#????? | | ???????????????????????????#" """"#????? | | ???????????????????????????#" """#????? | | ???????????????????????????#" """#????? | | ???????????????????????????#" """#????? | | ???????????????????????????#" """#????? | | ???????????????????????????#" """#????? | | ???????????????????????????## """"????? | | ????????????????????????????# """#????? | | ????????????????????????????# "X" """"????? | | ????????????????????????????#" """ #????? | | ????????????????????????????#" """""""""#????? | | ???????????????????????????##" ###########????? | | ??????????????????????????## #??????????????? | | ?????????????????????###### " #??????????????? | | ???????????????????###"""""" ##?????????????? | | ??????????????????"""""" " ##???########## | | ?????????????? "" "" ! #####""""""""" | | ?????????????? " " !@l " """ """ | | ????????????? [! ph "" " | | ??????????? p g g " " | | ??????????? =!* g " | | ??????????? *%!==! h " | | ???????????? =%[%* b | | ???????????? """" g | | ???????????? ######""" | | ????????????? ""#?????#####""" | | ????????????? """#??????????##""" | | ?????????????? """#????????????#"""" | | ?????????????? ????????????????#"" | | ???????????????? ?????????????????"""" | | ??????????????????????????????????" | | ????????????????????????????????" | | ????????????????????????????????? | | ???????????????????????????????? | | ???????????????????????????????? " | | ????????????????????????????????? "" """ | | ???????????????????????????????????"" " " ""#" | | ????????????????????????????????????##""" """##""" | | ?????????????????????????????????????###"""???#### | | ???????????????????????????????????????##????????? | | ?????????????????????????????????????????????????? | | ?????????????????????????????????????????????????? | +----------------------------------------------------+ Best States ------------- Heat Dissipation 39 Energy Generation 14 Energy Capacity 280 Matter Stores 300 Matter Capacity 300 Sight Range 16 Terrain Scan Density 10 Armor Coverage 150 Evasion (%) 55 Recoil Reduction 2 Item Schematics ----------------- None Robot Schematics ------------------ None Fabricated ------------ Nothing Alien Tech Used ----------------- None Achievements -------------- None Challenges ------------ None Game ------ Seed CargoBiometalClaw Manual? 0 Play Time 00:20:37 Cumulative 361.3 hours Start 2022.06.30 @ 10:10:15 End 2022.06.30 @ 11:02:14 Sessions 1 Manual Loads 0 Difficulty Rogue Special Mode None Game No. 435 Rogue 434 Adventurer 0 Explorer 1 Win Type - Total 9 Types 6/0/1/2/0/0/0/0/0 Lore% 73 Gallery% 84 Achievement% 62 Wizard Run 0 Options --------- ASCII 0 Keyboard 1 Movement Vi Keybinds 0 Fullscreen 1 Font 18/SmallcapsGlow Map View 76x50 Tactical HUD 1 Map Filters NONE Filters NONE Steam 1 RUN: 7e343d80-b4a7-4c48-ba9e-cba6487c0b4c